bitfinex/quotes_BTCUSD_20230906
["timestamp","ask_amount","ask_price","bid_price","bid_amount"]
[1694016679785,0.23503532,25601.0,25600.0,2.36920234]
[1694016680370,0.26765776,25601.0,25600.0,1.58795234]
[1694016681575,0.26769516,25601.0,25600.0,1.58795234]
[1694016681831,0.50161764,25601.0,25600.0,1.58795234]
[1694016683138,0.50161764,25601.0,25600.0,0.80670234]
[1694016684319,0.31447966,25601.0,25600.0,0.80670234]
[1694016684930,0.05753044,25601.0,25600.0,0.80670234]
[1694016685141,0.31472661,25601.0,25600.0,0.80670234]
[1694016685360,0.31472661,25601.0,25600.0,0.02545234]
[1694016685735,1.87716461,25601.0,25600.0,0.02545234]
[1694016690169,2.78048361,25601.0,25600.0,0.02545234]
[1694016690375,3.71435969,25601.0,25600.0,0.02545234]
[1694016690600,4.63905749,25601.0,25600.0,0.02545234]
[1694016691509,4.74187152,25601.0,25600.0,0.02545234]
[1694016691719,4.56584335,25601.0,25600.0,0.02545234]
[1694016691929,4.30857665,25601.0,25600.0,0.0005]
[1694016692343,4.47067665,25601.0,25600.0,0.0005]
[1694016694189,4.47067665,25601.0,25600.0,0.1005]
[1694016694590,4.75398279,25601.0,25600.0,0.1005]
[1694016703211,4.36733752,25601.0,25600.0,0.1005]
[1694016708183,4.34333752,25601.0,25600.0,0.1005]
[1694016708386,4.39133752,25601.0,25600.0,0.1005]
[1694016708885,4.36733752,25601.0,25600.0,0.1005]
[1694016709094,4.31933752,25601.0,25600.0,0.1005]
[1694016709292,4.34333752,25601.0,25600.0,0.1005]
[1694016710056,4.70598279,25601.0,25600.0,0.1005]
[1694016710258,4.72998279,25601.0,25600.0,0.1005]
[1694016711268,4.75398279,25601.0,25600.0,0.1005]
[1694016711499,4.36733752,25601.0,25600.0,0.1005]
[1694016711746,4.2597776,25601.0,25600.0,0.1005]
[1694016712182,4.18847191,25601.0,25600.0,0.12337037]
[1694016712799,4.48637541,25601.0,25600.0,0.12337037]
[1694016713207,4.30127541,25601.0,25600.0,0.12337037]
[1694016714455,4.58177007,25601.0,25600.0,0.12337037]
[1694016716967,4.37257188,25601.0,25600.0,0.12337037]
[1694016717375,4.58183949,25601.0,25600.0,0.12337037]
[1694016718022,4.96848476,25601.0,25600.0,0.12337037]
[1694016718446,4.96848476,25601.0,25600.0,0.1005]
[1694016718653,4.96849446,25601.0,25600.0,0.1005]
[1694016720340,4.96846573,25601.0,25600.0,0.1005]
[1694016721969,4.6879901,25601.0,25600.0,0.1005]
[1694016722866,4.4130866,25601.0,25600.0,0.1005]
[1694016722975,5.3130866,25601.0,25600.0,0.1005]
[1694016723200,5.62897066,25601.0,25600.0,0.1005]
[1694016725773,5.90072445,25601.0,25600.0,0.1005]
[1694016726857,5.62897066,25601.0,25600.0,0.1005]
[1694016729507,5.69779066,25601.0,25600.0,0.1005]
[1694016729700,5.69629066,25601.0,25600.0,0.1005]
[1694016729932,5.69539066,25601.0,25600.0,0.1005]
[1694016730140,5.84266957,25601.0,25600.0,0.1005]
[1694016730356,5.4560243,25601.0,25600.0,0.1005]
[1694016730555,5.14014024,25601.0,25600.0,0.1005]
[1694016730977,5.45578079,25601.0,25600.0,0.1005]
[1694016732490,5.14014024,25601.0,25600.0,0.1005]
[1694016735194,4.92644133,25601.0,25600.0,0.1005]
[1694016735418,5.22707746,25601.0,25600.0,0.1005]
[1694016736242,4.95852463,25601.0,25600.0,0.1005]
[1694016736411,5.22274828,25601.0,25600.0,0.1005]
[1694016738395,5.17474828,25601.0,25600.0,0.1005]
[1694016738598,5.22274828,25601.0,25600.0,0.1005]
[1694016738977,5.19874828,25601.0,25600.0,0.1005]
[1694016739380,5.3211699,25601.0,25600.0,0.1005]
[1694016739589,6.08275368,25601.0,25600.0,0.01219339]
[1694016739981,5.6451699,25601.0,25600.0,0.01219339]
[1694016740222,6.08275368,25601.0,25600.0,0.01219339]
[1694016740434,5.85027809,25601.0,25600.0,0.01219339]
[1694016740647,6.35180299,25601.0,25600.0,0.01219339]
[1694016741410,6.32780299,25601.0,25600.0,0.01219339]
[1694016741617,5.91421921,25601.0,25600.0,0.01219339]
[1694016741825,6.35180299,25601.0,25600.0,0.01219339]
[1694016742260,6.32780299,25601.0,25600.0,0.01219339]
[1694016742464,5.91421921,25601.0,25600.0,0.01219339]
[1694016742864,5.89021921,25601.0,25600.0,0.01219339]
[1694016743096,5.91421921,25601.0,25600.0,0.01219339]
[1694016746259,6.34497933,25601.0,25600.0,0.01219339]
[1694016746884,5.91421921,25601.0,25600.0,0.01219339]
[1694016747695,6.14195931,25601.0,25600.0,0.01219339]
[1694016748103,5.91421921,25601.0,25600.0,0.01219339]
[1694016751415,6.14565218,25601.0,25600.0,0.01219339]
[1694016752081,5.91421921,25601.0,25600.0,0.01219339]
[1694016752283,6.12909727,25601.0,25600.0,0.01219339]
[1694016754142,5.91421921,25601.0,25600.0,0.01219339]
[1694016755767,6.14055458,25601.0,25600.0,0.01219339]
[1694016756201,5.24055458,25601.0,25600.0,0.01219339]
[1694016756399,5.20847128,25601.0,25600.0,0.01219339]
[1694016756596,4.98213591,25601.0,25600.0,0.01219339]
[1694016757342,4.98213591,25601.0,25600.0,0.01229339]
[1694016757725,4.98213591,25601.0,25600.0,0.01239339]
[1694016758330,4.98213591,25601.0,25600.0,0.01249339]
[1694016759024,4.98213591,25601.0,25600.0,0.01259339]
[1694016759632,4.98213591,25601.0,25600.0,0.01269339]
[1694016760260,5.24286813,25601.0,25600.0,0.01269339]
[1694016760656,4.98213591,25601.0,25600.0,0.01269339]
[1694016761636,5.24210868,25601.0,25600.0,0.01269339]
[1694016761838,5.24264296,25601.0,25600.0,0.01269339]
[1694016763205,4.98267019,25601.0,25600.0,0.01269339]
[1694016763401,5.41358546,25601.0,25600.0,0.01269339]
[1694016766246,5.38958546,25601.0,25600.0,0.01269339]
[1694016766626,5.41358546,25601.0,25600.0,0.01269339]
[1694016766824,5.38958546,25601.0,25600.0,0.01269339]
[1694016767306,4.57202492,25601.0,25600.0,0.00205518]
[1694016767516,5.02694019,25601.0,25600.0,0.00205518]
[1694016768155,5.30809556,25601.0,25600.0,0.00205518]
[1694016769316,5.02694019,25601.0,25600.0,0.00205518]
[1694016770516,5.10422019,25601.0,25600.0,0.00205518]
[1694016770863,5.49638546,25601.0,25600.0,0.00205518]
[1694016771065,5.49614546,25601.0,25600.0,0.00205518]
[1694016771268,5.49632546,25601.0,25600.0,0.00205518]
[1694016771480,5.49554546,25601.0,25600.0,0.00205518]
[1694016771675,5.49662546,25601.0,25600.0,0.00205518]
[1694016771926,6.08742045,25601.0,25600.0,1.8e-07]
[1694016772123,6.09108045,25601.0,25600.0,0.10000018]
[1694016772442,6.09108045,25601.0,25593.0,0.20859699]
[1694016772443,6.25028954,25601.0,25593.0,0.20859699]
[1694016772662,0.1221,25594.0,25593.0,0.20859699]
[1694016772907,2.72711787,25594.0,25593.0,0.20859699]
[1694016773147,4.11414475,25594.0,25593.0,0.11989699]
[1694016773380,4.40999426,25594.0,25593.0,0.11989699]
[1694016773851,4.52989126,25594.0,25593.0,0.11989699]
[1694016774090,4.55389126,25594.0,25593.0,0.11989699]
[1694016776369,4.57789126,25594.0,25593.0,0.11989699]
[1694016777714,4.85852713,25594.0,25593.0,0.11989699]
[1694016778136,4.57789126,25594.0,25593.0,0.11989699]
[1694016779575,4.30322276,25594.0,25593.0,0.11989699]
[1694016781183,4.68986803,25594.0,25593.0,0.11989699]
[1694016784773,5.04945151,25594.0,25593.0,0.11989699]
[1694016785135,5.36527431,25594.0,25593.0,0.1]
[1694016785625,5.07245151,25594.0,25593.0,0.1]
[1694016785830,5.36393221,25594.0,25593.0,0.1]
[1694016786277,5.38793221,25594.0,25593.0,0.1]
[1694016786484,5.36393221,25594.0,25593.0,0.1]
[1694016786688,5.33993221,25594.0,25593.0,0.1]
[1694016786887,5.36393221,25594.0,25593.0,0.1]
[1694016787093,5.04845151,25594.0,25593.0,0.1]
[1694016788082,4.63780624,25594.0,25593.0,0.1]
[1694016788295,4.68580624,25594.0,25593.0,0.1]
[1694016788879,4.66180624,25594.0,25593.0,0.1]
[1694016789090,4.68580624,25594.0,25593.0,0.1]
[1694016789770,4.66180624,25594.0,25593.0,0.1]
[1694016789991,4.68580624,25594.0,25593.0,0.1]
[1694016790189,5.07245151,25594.0,25593.0,0.1]
[1694016790936,4.8022125,25594.0,25593.0,0.1]
[1694016791391,5.02977397,25594.0,25593.0,0.1]
[1694016795135,5.02977397,25594.0,25593.0,0.1001]
[1694016796376,4.6431287,25594.0,25593.0,0.1001]
[1694016796580,4.95816291,25594.0,25593.0,0.1001]
[1694016796788,4.93416291,25594.0,25593.0,0.1001]
[1694016797192,4.93416291,25594.0,25593.0,0.1193194]
[1694016797393,4.95816291,25594.0,25593.0,0.1193194]
[1694016797588,5.32080818,25594.0,25593.0,0.1193194]
[1694016797840,4.91016291,25594.0,25593.0,0.1193194]
[1694016798256,4.93416291,25594.0,25593.0,0.1001]
[1694016798662,4.93416291,25594.0,25593.0,0.1193194]
[1694016799789,4.95816291,25594.0,25593.0,0.1193194]
[1694016800037,4.93516291,25594.0,25593.0,0.1193194]
[1694016800802,5.32180818,25594.0,25593.0,0.1193194]
[1694016801369,4.93516291,25594.0,25593.0,0.1193194]
[1694016805782,4.6201287,25594.0,25593.0,0.1193194]
[1694016806584,4.93516291,25594.0,25593.0,0.1193194]
[1694016806832,4.6201287,25594.0,25593.0,0.1193194]
[1694016806983,4.93516291,25594.0,25593.0,0.1193194]
[1694016807392,4.6201287,25594.0,25593.0,0.1193194]
[1694016807600,4.93516291,25594.0,25593.0,0.1193194]
[1694016812040,5.32180818,25594.0,25593.0,0.1193194]
[1694016812371,4.39256723,25594.0,25593.0,0.1193194]
[1694016813111,4.70760144,25594.0,25593.0,0.1193194]
[1694016813734,4.98539883,25594.0,25593.0,0.1193194]
[1694016813938,4.98539883,25594.0,25593.0,0.1001]
[1694016815504,4.67036462,25594.0,25593.0,0.1001]
[1694016819901,4.67036462,25594.0,25593.0,0.11736047]
[1694016821736,2.82970123,25594.0,25593.0,0.11736047]
[1694016821923,1.93576198,25594.0,25593.0,0.11736047]
[1694016822125,2.23161149,25594.0,25593.0,0.1001]
[1694016822327,2.23161149,25594.0,25593.0,0.11732604]
[1694016822916,2.35371149,25594.0,25593.0,0.11732604]
[1694016823769,2.03386198,25594.0,25593.0,0.11732604]
[1694016823974,2.32971149,25594.0,25593.0,0.11732604]
[1694016824101,2.05786198,25594.0,25593.0,0.11732604]
[1694016824307,2.03386198,25594.0,25593.0,0.11732604]
[1694016824560,0.62936776,25594.0,25593.0,1.68025204]
[1694016824762,0.50947076,25594.0,25593.0,0.11732604]
[1694016824965,0.53347076,25594.0,25593.0,0.89878904]
[1694016825261,0.53347076,25594.0,25593.0,0.11732604]
[1694016825471,0.25299898,25594.0,25593.0,0.11732604]
[1694016825677,1.79186498,25594.0,25593.0,0.11732604]
[1694016825826,2.07229653,25594.0,25593.0,0.11732604]
[1694016826033,2.86914749,25594.0,25593.0,0.11732604]
[1694016826909,2.84514749,25594.0,25593.0,0.11732604]
[1694016827319,3.14957105,25594.0,25593.0,0.11732604]
[1694016827522,3.12557105,25594.0,25593.0,0.11732604]
[1694016827723,2.86914749,25594.0,25593.0,0.11732604]
[1694016827923,2.89314749,25594.0,25593.0,0.11732604]
[1694016828145,2.86914749,25594.0,25593.0,0.11732604]
[1694016828458,2.89314749,25594.0,25593.0,0.11732604]
[1694016830072,3.50083098,25594.0,25593.0,0.11732604]
[1694016830382,3.79668049,25594.0,25593.0,0.11732604]
[1694016837046,4.18332576,25594.0,25593.0,0.11732604]
[1694016838052,4.80663267,25594.0,25593.0,0.11732604]
[1694016838651,5.23445006,25594.0,25593.0,0.11732604]
[1694016838859,5.23445006,25594.0,25593.0,0.1001]
[1694016839699,4.91897714,25594.0,25593.0,0.1001]
[1694016840759,4.6823155,25594.0,25593.0,0.1001]
[1694016841161,4.84331183,25594.0,25593.0,0.1001]
[1694016843000,4.81931183,25594.0,25593.0,0.1001]
[1694016843877,4.79531183,25594.0,25593.0,0.1001]
[1694016844305,5.46141183,25594.0,25593.0,0.1001]
[1694016844519,0.12482004,25592.0,25591.0,0.019796]
[1694016844750,4.1882249,25592.0,25591.0,0.119796]
[1694016844948,4.56648613,25592.0,25591.0,0.119796]
[1694016845159,5.34798013,25592.0,25591.0,0.119796]
[1694016846184,5.67198013,25592.0,25591.0,0.119796]
[1694016846389,6.0586254,25592.0,25591.0,0.119796]
[1694016846600,6.0826254,25592.0,25591.0,0.119796]
[1694016847497,0.08934447,25589.0,25588.0,0.01080184]
[1694016847719,4.80933943,25589.0,25588.0,0.01080184]
[1694016847946,5.09292302,25589.0,25588.0,0.11080184]
[1694016848837,5.38415547,25589.0,25588.0,0.11080184]
[1694016849742,5.40815547,25589.0,25588.0,0.1281971]
[1694016849947,5.40815547,25589.0,25588.0,0.11080184]
[1694016849948,5.49999436,25589.0,25588.0,0.11080184]
[1694016850152,5.52399436,25589.0,25588.0,0.11080184]
[1694016850596,5.85445275,25589.0,25588.0,0.11080184]
[1694016851459,5.52399436,25589.0,25588.0,0.11080184]
[1694016852532,5.52399436,25589.0,25588.0,0.12820316]
[1694016853816,5.80413922,25589.0,25588.0,0.12820316]
[1694016854435,5.43197564,25589.0,25588.0,0.12820316]
[1694016854584,5.80457129,25589.0,25588.0,0.12820316]
[1694016855178,5.02298629,25589.0,25588.0,0.12820316]
[1694016855378,4.65039064,25589.0,25588.0,0.12820316]
[1694016855611,4.65039064,25589.0,25588.0,0.11080184]
[1694016856007,4.65039064,25589.0,25588.0,0.12820148]
[1694016856881,4.62639064,25589.0,25588.0,0.12820148]
[1694016857288,4.65039064,25589.0,25588.0,0.12820148]
[1694016857650,4.60239064,25589.0,25588.0,0.12820148]
[1694016857852,4.62639064,25589.0,25588.0,0.12820148]
[1694016859464,4.65039064,25589.0,25588.0,0.12820148]
[1694016860692,4.65039064,25589.0,25588.0,0.11080184]
[1694016861659,4.65039064,25589.0,25588.0,0.12732939]
[1694016862946,4.62739064,25589.0,25588.0,0.12732939]
[1694016864298,4.62739064,25589.0,25588.0,0.12742939]
[1694016869671,3.94951292,25589.0,25588.0,0.12742939]
[1694016869866,1.98409806,25589.0,25588.0,0.12742939]
[1694016870638,2.76568306,25589.0,25588.0,0.12742939]
[1694016870840,2.74168306,25589.0,25588.0,0.12742939]
[1694016871242,2.71768306,25589.0,25588.0,0.12742939]
[1694016871580,2.76568306,25589.0,25588.0,0.12742939]
[1694016871780,2.67633859,25589.0,25588.0,0.12742939]
[1694016871981,0.30758359,25589.0,25588.0,0.12742939]
[1694016872286,1.08916859,25589.0,25588.0,0.12742939]
[1694016872484,1.89475359,25589.0,25588.0,0.12742939]
[1694016872665,2.12806053,25589.0,25588.0,0.12742939]
[1694016872864,1.89475359,25589.0,25588.0,0.12742939]
[1694016873287,2.12807646,25589.0,25588.0,0.12742939]
[1694016873523,1.34649146,25589.0,25588.0,0.12742939]
[1694016873761,2.12807646,25589.0,25588.0,0.12742939]
[1694016873990,2.10407646,25589.0,25588.0,0.12742939]
[1694016874359,1.32249146,25589.0,25588.0,0.12742939]
[1694016874586,1.34649146,25589.0,25588.0,0.12742939]
[1694016875028,0.33158359,25589.0,25588.0,0.90904539]
[1694016875549,0.56497183,25589.0,25588.0,0.12742939]
[1694016875752,1.89475359,25589.0,25588.0,0.12742939]
[1694016877616,0.33158359,25589.0,25588.0,0.38618375]
[1694016877826,0.56504827,25589.0,25588.0,1.94941575]
[1694016878230,0.56504827,25589.0,25588.0,1.70113095]
[1694016878448,0.56504827,25589.0,25588.0,0.13789895]
[1694016878654,0.54104827,25589.0,25588.0,0.13789895]
[1694016878833,0.51704827,25589.0,25588.0,0.13789895]
[1694016878992,0.54104827,25589.0,25588.0,0.13789895]
[1694016879190,0.56504827,25589.0,25588.0,0.13789895]
[1694016879392,1.3466868,25589.0,25588.0,0.13789895]
[1694016879595,1.11316859,25589.0,25588.0,0.13789895]
[1694016879806,1.84675359,25589.0,25588.0,0.13789895]
[1694016880032,1.87075359,25589.0,25588.0,0.13789895]
[1694016881535,1.89475359,25589.0,25588.0,0.12742939]
[1694016883541,1.11316859,25589.0,25588.0,0.12742939]
[1694016883959,1.08916859,25589.0,25588.0,0.12742939]
[1694016884162,1.11316859,25589.0,25588.0,0.12742939]
[1694016884339,0.33158359,25589.0,25588.0,0.90904539]
[1694016884734,0.30758359,25589.0,25588.0,0.90904539]
[1694016885201,0.33158359,25589.0,25588.0,0.90904539]
[1694016885823,0.28358359,25589.0,25588.0,0.90904539]
[1694016886227,0.30758359,25589.0,25588.0,0.90904539]
[1694016886435,0.33158359,25589.0,25588.0,1.69066139]
[1694016888451,0.33158359,25589.0,25588.0,0.90904539]
[1694016888856,0.33158359,25589.0,25588.0,2.59437739]
[1694016889062,0.56531416,25589.0,25588.0,2.59437739]
[1694016889270,0.56531416,25589.0,25588.0,3.25389339]
[1694016889473,0.5185749,25589.0,25588.0,3.37599339]
[1694016889674,0.4705749,25589.0,25588.0,3.37599339]
[1694016889877,0.42072188,25589.0,25588.0,3.37599339]
[1694016890087,0.4945749,25589.0,25588.0,3.37599339]
[1694016890304,0.4705749,25589.0,25588.0,3.37599339]
[1694016890457,0.21099131,25589.0,25588.0,3.37599339]
[1694016890661,0.23499131,25589.0,25588.0,3.37599339]
[1694016891060,0.37520906,25589.0,25588.0,3.76263866]
[1694016891261,0.37520906,25589.0,25588.0,3.37599339]
[1694016891465,0.18821775,25589.0,25588.0,3.37599339]
[1694016892080,0.21099131,25589.0,25588.0,2.59437739]
[1694016892284,0.46872188,25589.0,25588.0,2.59437739]
[1694016892614,0.7324099,25589.0,25588.0,2.59437739]
[1694016893578,0.7564099,25589.0,25588.0,2.59437739]
[1694016895199,0.52267933,25589.0,25588.0,2.59437739]
[1694016896092,0.52267933,25589.0,25588.0,3.37599339]
[1694016896303,0.52267933,25589.0,25588.0,2.59437739]
[1694016901392,0.7564099,25589.0,25588.0,2.59437739]
[1694016902001,0.7564099,25589.0,25588.0,3.37599339]
[1694016902406,0.7564099,25589.0,25588.0,2.59437739]
[1694016903023,0.7564099,25589.0,25588.0,3.37599339]
[1694016903226,0.7564099,25589.0,25588.0,3.25389339]
[1694016904212,0.14145579,25589.0,25588.0,4.23993946]
[1694016904420,0.048,25589.0,25588.0,4.75691946]
[1694016904619,0.048,25589.0,25588.0,5.05073946]
[1694016904877,0.048,25589.0,25588.0,5.05379946]
[1694016905032,0.048,25589.0,25588.0,5.05325946]
[1694016905274,0.048,25589.0,25588.0,5.05349946]
[1694016905399,0.048,25589.0,25588.0,5.05811946]
[1694016905796,0.048,25589.0,25588.0,5.07785946]
[1694016906014,0.024,25589.0,25588.0,5.07947946]
[1694016906218,0.024,25589.0,25588.0,5.21493946]
[1694016906454,0.024,25589.0,25588.0,5.21769946]
[1694016906677,0.048,25589.0,25588.0,5.21833946]
[1694016906884,0.024,25589.0,25588.0,5.21685946]
[1694016907103,0.025,25589.0,25588.0,5.10891946]
[1694016907304,0.001,25589.0,25588.0,5.10563946]
[1694016907522,0.09345579,25592.0,25591.0,0.50185553]
[1694016907737,0.09345579,25592.0,25591.0,4.1366968]
[1694016907960,0.09345579,25592.0,25591.0,4.2366968]
[1694016908167,0.09345579,25592.0,25591.0,4.69894207]
[1694016908379,0.09345579,25592.0,25591.0,4.71439054]
[1694016908585,0.09345579,25592.0,25591.0,4.32630527]
[1694016908788,0.09345579,25592.0,25591.0,4.32636527]
[1694016909005,0.09345579,25592.0,25591.0,4.32618527]
[1694016909237,0.09345579,25592.0,25591.0,4.32606527]
[1694016909456,0.09345579,25592.0,25591.0,4.32618527]
[1694016909663,0.09345579,25592.0,25591.0,4.32636527]
[1694016909878,0.09345579,25592.0,25591.0,4.32690527]
[1694016910080,0.09345579,25592.0,25591.0,4.32696527]
[1694016910282,0.10245579,25592.0,25591.0,4.32742527]
[1694016910489,0.10245579,25592.0,25591.0,4.32748527]
[1694016910659,0.10245579,25592.0,25591.0,4.71395054]
[1694016910869,0.10245579,25592.0,25591.0,4.32742527]
[1694016911075,0.023,25592.0,25591.0,5.43022927]
[1694016911313,0.23363671,25596.0,25595.0,0.09065553]
[1694016911478,0.23363671,25596.0,25595.0,3.87519435]
[1694016911678,0.09345579,25596.0,25595.0,3.94089435]
[1694016911836,0.23363671,25596.0,25595.0,3.87519435]
[1694016912241,0.23363671,25596.0,25595.0,4.28639435]
[1694016912642,0.09345579,25596.0,25595.0,4.28639435]
[1694016913376,0.09345579,25596.0,25595.0,4.35383435]
[1694016913600,0.11745579,25596.0,25595.0,4.35445435]
[1694016913747,0.14145579,25596.0,25595.0,4.29039435]
[1694016913947,0.11745579,25596.0,25595.0,4.35475435]
[1694016914183,0.12445579,25596.0,25595.0,4.35557435]
[1694016914385,0.007,25596.0,25595.0,4.35333435]
[1694016914532,0.11233756,25596.0,25595.0,4.28839435]
[1694016915019,0.11233756,25596.0,25595.0,4.35973435]
[1694016915237,0.11233756,25596.0,25595.0,4.35775435]
[1694016915457,0.11233756,25596.0,25595.0,4.28839435]
[1694016916223,0.25234391,25596.0,25595.0,3.4568068]
[1694016917123,0.25234391,25596.0,25595.0,3.8270088]
[1694016917541,0.11233756,25596.0,25595.0,3.8270088]
[1694016917755,0.25234391,25596.0,25595.0,3.8270088]
[1694016917967,0.11233756,25596.0,25595.0,4.6177688]
[1694016918180,0.019,25596.0,25595.0,5.00369407]
[1694016918391,0.019,25596.0,25595.0,5.00345407]
[1694016918605,0.019,25596.0,25595.0,5.00051407]
[1694016918827,0.019,25596.0,25595.0,4.99913407]
[1694016919042,0.019,25596.0,25595.0,5.02127407]
[1694016919326,0.019,25596.0,25595.0,5.01911407]
[1694016919538,0.019,25596.0,25595.0,5.01461407]
[1694016919750,0.019,25596.0,25595.0,5.01443407]
[1694016919962,0.019,25596.0,25595.0,5.01635407]
[1694016920174,0.019,25596.0,25595.0,5.01527407]
[1694016920391,0.019,25596.0,25595.0,5.01221407]
[1694016920574,0.019,25596.0,25595.0,5.02899112]
[1694016920840,0.019,25596.0,25595.0,5.02827112]
[1694016921055,0.019,25596.0,25595.0,5.02833112]
[1694016921271,0.019,25596.0,25595.0,4.94037112]
[1694016921880,0.019,25596.0,25595.0,4.52917112]
[1694016923738,0.019,25596.0,25595.0,4.52803468]
[1694016925345,0.019,25596.0,25595.0,4.13073388]
[1694016925472,0.019,25596.0,25595.0,3.04933188]
[1694016926056,0.11233756,25596.0,25595.0,3.04933188]
[1694016926246,0.019,25596.0,25595.0,3.04933188]
[1694016927812,0.11233756,25596.0,25595.0,3.04933188]
[1694016929693,0.11233756,25596.0,25595.0,2.66268661]
[1694016930626,0.89370956,25596.0,25595.0,0.15751705]
[1694016930834,1.81508791,25596.0,25595.0,0.15751705]
[1694016931049,1.03371591,25596.0,25595.0,0.15751705]
[1694016931230,1.12306038,25596.0,25595.0,0.15751705]
[1694016931379,1.02972282,25596.0,25595.0,0.15751705]
[1694016932584,1.3564694,25596.0,25595.0,0.15751705]
[1694016933203,2.1378414,25596.0,25595.0,0.15751705]
[1694016933408,2.9192134,25596.0,25595.0,0.15751705]
[1694016933616,2.9192134,25596.0,25595.0,0.24591447]
[1694016934029,2.9072134,25596.0,25595.0,0.24491447]
[1694016934486,3.14055731,25596.0,25595.0,0.24491447]
[1694016935224,3.16455731,25596.0,25595.0,0.24491447]
[1694016935580,3.13355731,25596.0,25595.0,0.25038101]
[1694016935824,3.15755731,25596.0,25595.0,0.25138101]
[1694016936038,2.99488218,25596.0,25595.0,0.25138101]
[1694016936243,2.97088218,25596.0,25595.0,0.25038101]
[1694016936468,2.18951018,25596.0,25595.0,0.25038101]
[1694016936702,2.21351018,25596.0,25595.0,0.25138101]
[1694016936906,2.21351018,25596.0,25595.0,0.21138101]
[1694016940212,2.99488218,25596.0,25595.0,0.21138101]
[1694016940455,2.76153827,25596.0,25595.0,0.21138101]
[1694016940657,2.76153827,25596.0,25595.0,0.25138101]
[1694016942337,1.98016627,25596.0,25595.0,0.25138101]
[1694016945668,1.98016627,25596.0,25595.0,0.21138101]
[1694016945916,4.16404123,25596.0,25595.0,0.21138101]
[1694016946126,4.25804992,25596.0,25595.0,0.21138101]
[1694016946520,4.25804992,25596.0,25595.0,0.12298359]
[1694016947066,3.05574563,25596.0,25595.0,0.12298359]
[1694016947270,0.37485401,25596.0,25595.0,3.83620042]
[1694016947502,0.28147573,25596.0,25595.0,4.31140243]
[1694016947733,0.048,25596.0,25595.0,5.50772443]
[1694016947935,0.048,25596.0,25595.0,5.53252365]
[1694016948093,0.048,25596.0,25595.0,5.83570365]
[1694016948268,0.024,25596.0,25595.0,5.83528365]
[1694016948469,0.23347573,25597.0,25596.0,0.4712]
[1694016948673,0.09339244,25597.0,25596.0,3.42406127]
[1694016948875,0.09339244,25597.0,25596.0,3.52672127]
[1694016949077,0.09339244,25597.0,25596.0,3.91306654]
[1694016949282,0.09339244,25597.0,25596.0,3.91510654]
[1694016949482,0.14008329,25597.0,25596.0,3.91444654]
[1694016949692,0.2335086,25597.0,25596.0,3.91402654]
[1694016949897,0.2335086,25597.0,25596.0,3.91312654]
[1694016950098,0.2335086,25597.0,25596.0,3.89926654]
[1694016950303,0.2345086,25597.0,25596.0,3.90636654]
[1694016950498,0.2345086,25597.0,25596.0,3.92859978]
[1694016950797,0.2345067,25597.0,25596.0,3.94239978]
[1694016951005,0.2345067,25597.0,25596.0,3.94191978]
[1694016951353,0.2345067,25597.0,25596.0,3.94155978]
[1694016951558,0.2355067,25597.0,25596.0,3.95273978]
[1694016951687,0.2355067,25597.0,25596.0,3.95297978]
[1694016951890,0.2355067,25597.0,25596.0,3.95267978]
[1694016952095,0.2355067,25597.0,25596.0,3.95375978]
[1694016952290,0.2355067,25597.0,25596.0,3.97562334]
[1694016952496,0.09542341,25597.0,25596.0,5.05579534]
[1694016952696,0.2355067,25597.0,25596.0,5.05297534]
[1694016952905,0.09542341,25597.0,25596.0,5.04553534]
[1694016953129,0.09542341,25597.0,25596.0,5.04427534]
[1694016953332,0.09542341,25597.0,25596.0,5.03839534]
[1694016953529,0.09542341,25597.0,25596.0,5.04247534]
[1694016953761,0.09542341,25597.0,25596.0,5.03983534]
[1694016953958,0.09542341,25597.0,25596.0,5.03971534]
[1694016954195,0.09542341,25597.0,25596.0,5.04025534]
[1694016954396,0.09542341,25597.0,25596.0,5.04073534]
[1694016954569,0.09542341,25597.0,25596.0,5.04181534]
[1694016954781,0.09542341,25597.0,25596.0,5.04253534]
[1694016954986,0.09542341,25597.0,25596.0,5.04259534]
[1694016955193,0.09542341,25597.0,25596.0,5.04343534]
[1694016955520,0.09542341,25597.0,25596.0,5.03995534]
[1694016955695,0.09542341,25597.0,25596.0,5.03599534]
[1694016955924,0.09542341,25597.0,25596.0,5.03305534]
[1694016956209,0.09542341,25597.0,25596.0,5.03257534]
[1694016956411,0.09542341,25597.0,25596.0,5.03395534]
[1694016956615,0.09542341,25597.0,25596.0,5.03281534]
[1694016957020,0.09542341,25597.0,25596.0,5.03269534]
[1694016957340,0.09542341,25597.0,25596.0,5.03251534]
[1694016957544,0.09542341,25597.0,25596.0,5.03239534]
[1694016957747,0.09542341,25597.0,25596.0,5.03227534]
[1694016957922,0.09542341,25597.0,25596.0,5.03221534]
[1694016958136,0.09542341,25597.0,25596.0,5.03299534]
[1694016958341,0.09542341,25597.0,25596.0,5.03425534]
[1694016958539,0.09542341,25597.0,25596.0,5.03419534]
[1694016958740,0.09542341,25597.0,25596.0,5.03413534]
[1694016958946,0.09542341,25597.0,25596.0,5.03281534]
[1694016959124,0.09542341,25597.0,25596.0,5.02975534]
[1694016959484,0.09542341,25597.0,25596.0,5.03419534]
[1694016959691,0.09542341,25597.0,25596.0,5.03431534]
[1694016959906,0.09542341,25597.0,25596.0,4.95217534]
[1694016960531,0.09542341,25597.0,25596.0,5.01829534]
[1694016960736,0.09542341,25597.0,25596.0,5.01835534]
[1694016960946,0.09542341,25597.0,25596.0,4.95217534]
[1694016961953,0.01153044,25597.0,25596.0,4.54097534]
[1694016962170,0.15161373,25597.0,25596.0,2.46948607]
[1694016962518,0.33838445,25597.0,25596.0,2.46948607]
[1694016963526,0.33838445,25597.0,25596.0,3.23199451]
[1694016963747,0.33838445,25597.0,25596.0,3.25085807]
[1694016963953,0.33838445,25597.0,25596.0,3.23199451]
[1694016964379,0.33838445,25597.0,25596.0,2.84534924]
[1694016965806,0.33838445,25597.0,25596.0,2.84544924]
[1694016967784,0.33838445,25597.0,25596.0,3.62682124]
[1694016967989,0.01153044,25597.0,25596.0,5.00000318]
[1694016968192,0.01153044,25597.0,25596.0,5.01164318]
[1694016968345,0.07153044,25597.0,25596.0,5.01356318]
[1694016968739,0.07153044,25597.0,25596.0,5.01308318]
[1694016968938,0.09134447,25597.0,25596.0,5.01266318]
[1694016969058,0.09134447,25597.0,25596.0,5.01434318]
[1694016969255,0.09134447,25597.0,25596.0,5.01410318]
[1694016969460,0.09134447,25597.0,25596.0,5.01494318]
[1694016969664,0.09134447,25597.0,25596.0,5.02202318]
[1694016969905,0.09134447,25597.0,25596.0,5.02172318]
[1694016970122,0.09134447,25597.0,25596.0,5.02256318]
[1694016970322,0.09134447,25597.0,25596.0,5.02244318]
[1694016970578,0.09134447,25597.0,25596.0,5.02358318]
[1694016970778,0.09134447,25597.0,25596.0,5.02310318]
[1694016970982,0.09134447,25597.0,25596.0,5.02286318]